[Event "Saint Louis Super Swiss 2023"]
[Site "Saint Louis"]
[Date "2023.03.16"]
[Round "6.1"]
[White "Yoo, Christopher Woojin"]
[Black "Theodorou, Nikolas"]
[Result "1/2-1/2"]
[ECO "A49"]
[WhiteElo "2591"]
[BlackElo "2584"]
[Annotator "TA"]
[PlyCount "50"]
[EventDate "2023.03.12"]
[EventType "swiss"]
[EventCountry "USA"]
[TimeControl "5400+30"]

{[%evp 19,50,10,13,16,31,10,3,0,0,-13,2,-16,-13,-21,-6,-11,-3,-21,0,-3,-15,-293,-18,-12,0,0,0,-11,-4,-4,-7,-8,-8]} 1. d4 {[%emt 0:00:08] Ftacnik,Lubomir} Nf6 {[%emt 0:02:14]} 2. Nf3 {[%emt 0:00:13]} g6 {[%emt 0:00:23]} 3. c4 {[%emt 0:00:06]} Bg7 {[%emt 0:00:06]} 4. g3 {[%emt 0:00:20]} c6 {[%emt 0:01:20]} 5. Bg2 {[%emt 0:00:30]} O-O {[%emt 0:00:45]} 6. O-O {[%emt 0:00:24]} d5 {[%emt 0:00:15]} 7. b3 {[%emt 0:01:31]} dxc4 {[%emt 0:01:07]} 8. bxc4 {[%emt 0:00:04]} c5 {[%emt 0:00:04]} 9. Bb2 {[%emt 0:01:24]} cxd4 {[%emt 0:01:02]} 10. Nxd4 {[%emt 0:00:05]} Qb6 {[%emt 0:00:06]} 11. Qc2 {[%emt 0:01:36] A49: 1 d4 Nf6 2 Nf3 g6 3 g3: Anti-King's Indian systems.} Nc6 {[%emt 0:07:07]} 12. Nxc6 {[%emt 0:08:33]} (12. c5 $5 {[%cal Rc5b6]} Qa6 13. Nd2 $11) 12... bxc6 {[%emt 0:00:03]} 13. Nd2 {[%emt 0:01:35][%cal Bb1d2,Bd2f3,Bf3d4][%mdl 32]} Bf5 {[%emt 0:01:13]} 14. Qb3 {[%emt 0:00:37]} Rfd8 {[%emt 0:06:29] [#]} 15. Rfd1 $146 {[%emt 0:01:41][%cal Oc4c5]} ({Predecessor:} 15. Bc3 Ng4 16. Bxg7 Rxd2 17. Bc3 Rxe2 18. h3 Nf6 19. Rae1 Rc2 20. Qa3 Nd7 21. Ba5 {½-½ Malakhov,V (2696)-Svidler,P (2723) RUS-ch 56th Krasnoyarsk 2003 (7)}) 15... Rac8 {[%emt 0:06:44]} 16. Nf3 {[%emt 0:04:49]} Ne4 {[%emt 0:05:06]} 17. Qxb6 {[%emt 0:01:01]} (17. Rxd8+ {simplifies} Rxd8 18. Qxb6 axb6 19. Bxg7 Kxg7 20. Ne5) 17... axb6 {[%emt 0:00:03]} 18. Nd4 {[%emt 0:07:01]} Kf8 {[%emt 0:21:39]} 19. Nxf5 {[%emt 0:22:39]} Bxb2 {[%emt 0:10:00]} 20. Rxd8+ {[%emt 0:00:34]} Rxd8 {[%emt 0:00:03]} 21. Rb1 {[%emt 0:00:07] [#] aiming for Ne3. The position is equal.} gxf5 {[%emt 0:01:39]} 22. Bxe4 {[%emt 0:00:08]} Rd2 {[%emt 0:00:28]} 23. Bxf5 {[%emt 0:03:42]} Rxe2 {[%emt 0:00:09]} 24. Kf1 {[%emt 0:00:12]} ({Reject} 24. Bxh7 Bd4 25. Rf1 Rxa2 $15) 24... Rd2 {[%emt 0:00:05]} 25. Re1 {[%emt 0:00:06]} (25. Ke1 $5 Bc3 $8 26. Rb3 $11) 25... h6 {[%emt 0:01:16] Weighted Error Value: White=0.07 (flawless) /Black=0.06 (flawless)} 1/2-1/2

[Event "Saint Louis Super Swiss 2023"]
[Site "Saint Louis"]
[Date "2023.03.17"]
[Round "6.2"]
[White "Raja Harshit"]
[Black "Swiercz, Dariusz"]
[Result "1/2-1/2"]
[ECO "C84"]
[WhiteElo "2498"]
[BlackElo "2646"]
[Annotator "TA"]
[PlyCount "76"]
[EventDate "2023.03.12"]
[EventType "swiss"]
[EventCountry "USA"]
[TimeControl "5400+30"]

{[%evp 13,76,17,18,10,6,1,14,0,9,0,0,0,0,0,8,0,0,-15,0,-33,-42,-49,-62,-41,-13,-12,-13,-37,-44,-54,-35,-52,-42,-64,-53,-44,-57,-82,-29,-29,-18,-44,-30,-68,-80,-131,-123,-115,-118,-154,-64,-79,-58,-109,-14,-14,-14,-14,0,0,0,0,0,0,0]} 1. e4 {[%emt 0:05:49]} e5 {[%emt 0:05:51]} 2. Nf3 {[%emt 0:00:08]} Nc6 {[%emt 0:00:03]} 3. Bb5 {[%emt 0:00:08][%cal Bf1b5,Bb5a4,Ba4b3,Bb3a2][%mdl 32]} a6 {[%emt 0:00:13]} 4. Ba4 {[%emt 0:00:06]} Nf6 {[%emt 0:01:15]} 5. O-O {[%emt 0:00:09]} Be7 {[%emt 0:00:03]} 6. d3 {[%emt 0:00:12]} b5 {[%emt 0:00:55]} 7. Bb3 {[%emt 0:00:06]} d6 {[%emt 0:00:12]} 8. a3 {[%emt 0:00:06] C84: Closed Ruy Lopez: Unusual White 6th moves.} Na5 {[%emt 0:10:30]} 9. Ba2 {[%emt 0:00:17]} c5 {[%emt 0:00:01]} 10. Nc3 {[%emt 0:00:32]} Be6 {[%emt 0:00:11]} 11. Bg5 {[%emt 0:05:20]} O-O {[%emt 0:02:09]} 12. b4 {[%emt 0:07:34] And now Bxf6 would win.} Nc6 {[%emt 0:15:49] [#]} 13. bxc5 $146 {[%emt 0:07:26]} ({Predecessor:} 13. Nd5 Bxd5 14. exd5 Nd4 15. bxc5 Nxf3+ 16. Qxf3 dxc5 17. a4 Ne8 18. Bxe7 Qxe7 19. axb5 axb5 {½-½ Vachier Lagrave,M (2777)-Keymer,V (2590) Wch Rapid Almaty 2022 (13)}) 13... dxc5 {[%emt 0:00:13]} 14. Bxe6 {[%emt 0:01:21]} fxe6 {[%emt 0:00:05]} 15. Bxf6 {[%emt 0:00:18]} Bxf6 {[%emt 0:02:05]} 16. a4 {[%emt 0:01:41]} b4 {[%emt 0:01:01]} 17. Nb1 {[%emt 0:02:58] [#]} c4 $1 {[%emt 0:28:32] White is weak on the dark squares} 18. dxc4 {[%emt 0:00:12]} Qxd1 {[%emt 0:00:28]} 19. Rxd1 {[%emt 0:00:05]} Nd4 {[%emt 0:00:03]} 20. Nxd4 {[%emt 0:16:49]} exd4 {[%emt 0:00:06]} 21. Rd3 {[%emt 0:00:39]} Bg5 $1 {[%emt 0:01:27]} 22. a5 {[%emt 0:07:01]} Rfc8 {[%emt 0:08:39]} 23. Ra4 {[%emt 0:06:00]} Rab8 {[%emt 0:00:15]} 24. h4 $1 {[%emt 0:05:04]} Bxh4 {[%emt 0:00:57]} 25. g3 {[%emt 0:06:54]} Bf6 {[%emt 0:08:36]} (25... Bg5 $17 26. Rxd4 e5 {[%mdl 64] Deflection}) 26. Nd2 $11 {[%emt 0:00:05]} e5 {[%emt 0:04:45]} 27. f4 {[%emt 0:01:12]} g5 {[%emt 0:01:33][%cal Bg7g5,Bg5g4][%mdl 32]} 28. fxe5 {[%emt 0:05:08]} Bxe5 {[%emt 0:00:07]} 29. Rf3 {[%emt 0:00:17]} ({Better is} 29. Ra1) 29... g4 $17 {[%emt 0:05:17][%mdl 64] Deflection} 30. Rf5 {[%emt 0:00:04]} Bxg3 {[%emt 0:00:05]} 31. Ra1 {[%emt 0:01:11] [#] Prevents Be1} Rc6 {[%emt 0:03:36]} (31... Rf8 $1 $17 {Threatens to win with ...Rxf5.} 32. Rg5+ Kh8) 32. c5 {[%emt 0:02:57]} Re8 {[%emt 0:00:12]} (32... Rf8 $5 {[%cal Rf8f5]} 33. Raf1 Rxf5 34. Rxf5 h6 $15) 33. Rb1 {[%emt 0:02:00] [#]} (33. Raf1 $1 $15) 33... Be5 {[%emt 0:00:37]} (33... Re5 $1 $17 34. Kg2 Rxf5 35. exf5 Be5) 34. Rxb4 $11 {[%emt 0:01:02] The position is equal.} Rxc5 {[%emt 0:00:08]} 35. Nc4 {[%emt 0:00:34]} d3 {[%emt 0:01:16]} 36. Nxe5 $1 {[%emt 0:10:29]} Rexe5 {[%emt 0:00:05]} (36... dxc2 $2 37. Rg5+ (37. Nxg4 $2 {loses.} c1=Q+ 38. Rf1 Qg5 $19) 37... Kf8 38. Nd7+ Ke7 39. Rxc5 $18) 37. Rb8+ $1 {[%emt 0:00:29]} Kg7 {[%emt 0:00:04]} 38. Rb7+ {[%emt 0:00:03]} Kg6 {[%emt 0:00:54] Weighted Error Value: White=0.11 (very precise) /Black=0.13 (very precise)} 1/2-1/2

[Event "Saint Louis Super Swiss 2023"]
[Site "Saint Louis"]
[Date "2023.03.16"]
[Round "6.3"]
[White "Quesada Perez, Yasser"]
[Black "Bruzon Batista, Lazaro"]
[Result "1/2-1/2"]
[ECO "C67"]
[WhiteElo "2604"]
[BlackElo "2610"]
[Annotator "TA"]
[PlyCount "26"]
[EventDate "2023.03.12"]
[EventType "swiss"]
[EventCountry "USA"]
[TimeControl "5400+30"]

{[%evp 23,26,0,0,0,0]} 1. e4 {[%emt 0:00:51]} e5 {[%emt 0:00:18]} 2. Nf3 {[%emt 0:00:13]} Nc6 {[%emt 0:00:27]} 3. Bb5 {[%emt 0:00:17]} Nf6 {[%emt 0:00:35]} 4. O-O {[%emt 0:00:22]} Nxe4 {[%emt 0:00:16]} 5. d4 {[%emt 0:00:14][%cal Bd2d4,Bd4e5][%mdl 32]} Nd6 {[%emt 0:00:23]} 6. dxe5 {[%emt 0:00:22]} Nxb5 {[%emt 0:00:05]} 7. a4 {[%emt 0:00:06]} Nbd4 {[%emt 0:00:28]} 8. Nxd4 {[%emt 0:00:08]} d5 {[%emt 0:00:09]} 9. exd6 {[%emt 0:00:25]} Nxd4 {[%emt 0:00:17]} 10. Qxd4 {[%emt 0:00:07]} Qxd6 {[%emt 0:00:05]} 11. Qe4+ {[%emt 0:00:06]} Qe6 {[%emt 0:00:05]} 12. Qd4 {[%emt 0:00:06] [#]} Qd6 $146 {[%emt 0:00:08]} ({Predecessor:} 12... f6 13. Nc3 c6 14. Bf4 Kf7 15. Rad1 Qf5 16. Rfe1 Be6 17. Bd6 Rd8 18. Ne4 Bd5 {0-1 Vokhidov,S (2601)-Nakamura,H (2768) Titled Tuesday intern op 14th Feb Early blitz 2023 (8)}) 13. Qe4+ {[%emt 0:00:06] C67: Ruy Lopez: Berlin Defence: 4 0-0 Nxe4.} Qe6 {[%emt 0:00:04] A rather calm draw.} 1/2-1/2

[Event "Saint Louis Super Swiss 2023"]
[Site "Saint Louis"]
[Date "2023.03.17"]
[Round "6.4"]
[White "Nyzhnyk, Illya"]
[Black "Jacobson, Brandon"]
[Result "1/2-1/2"]
[ECO "D35"]
[WhiteElo "2654"]
[BlackElo "2543"]
[Annotator "TA"]
[PlyCount "40"]
[EventDate "2023.03.12"]
[EventType "swiss"]
[EventCountry "USA"]
[TimeControl "5400+30"]

{[%evp 18,27,15,0,0,0,0,0,16,0,9,0]} 1. c4 {[%emt 0:00:02]} e6 {[%emt 0:04:10]} 2. Nc3 {[%emt 0:00:07]} d5 {[%emt 0:00:07]} 3. d4 {[%emt 0:00:04]} Nf6 {[%emt 0:00:08]} 4. Nf3 {[%emt 0:00:04]} Nbd7 {[%emt 0:00:52]} 5. cxd5 {[%emt 0:01:31]} exd5 {[%emt 0:00:13]} 6. Bf4 {[%emt 0:00:03]} c6 {[%emt 0:00:11]} 7. e3 {[%emt 0:00:22]} Nh5 {[%emt 0:00:17]} 8. Bg5 {[%emt 0:00:24]} Be7 {[%emt 0:00:06]} 9. Bxe7 {[%emt 0:00:06]} Qxe7 {[%emt 0:00:05]} 10. Qc2 {[%emt 0:00:19] The position is equal.} Nb6 {[%emt 0:02:51] D35: Queen's Gambit Declined: Exchange Variation.} 11. h3 {[%emt 0:02:18]} g6 {[%emt 0:04:45]} 12. g4 {[%emt 0:00:43]} Ng7 {[%emt 0:03:39]} 13. Bd3 {[%emt 0:00:12]} Be6 {[%emt 0:00:55]} 14. O-O-O {[%emt 0:10:31] [#] Not much happened in this game.   Weighted Error Value: White=0.06 (flawless) /Black=0.03 (flawless)} {Predecessor:} O-O-O $146 15. Ne5 Kb8 16. f4 f6 17. Nf3 Ne8 18. Rde1 Nd6 19. Kb1 Rhe8 20. b3 Rc8 {1-0 Istratescu,A (2603)-Bricard,E (2453) Rohde op 01st 2001 (2)} 1/2-1/2

[Event "Saint Louis Super Swiss 2023"]
[Site "Saint Louis"]
[Date "2023.03.17"]
[Round "6.5"]
[White "Moradiabadi, Elshan"]
[Black "Durarbayli, Vasif"]
[Result "1/2-1/2"]
[ECO "E18"]
[WhiteElo "2507"]
[BlackElo "2635"]
[Annotator "TA"]
[PlyCount "109"]
[EventDate "2023.03.12"]
[EventType "swiss"]
[EventCountry "USA"]
[TimeControl "5400+30"]

{[%evp 14,109,14,0,31,25,26,33,37,31,56,66,52,58,52,17,55,46,47,48,50,48,50,57,97,91,106,102,107,109,112,114,128,93,111,113,119,127,147,119,113,100,115,129,130,130,160,157,166,147,143,159,154,125,120,125,124,110,165,164,177,164,145,82,248,231,386,437,445,444,441,430,493,452,552,537,495,414,407,407,364,112,112,108,211,108,139,73,73,73,72,52,52,60,51,57,57,57]} 1. d4 {[%emt 0:02:54]} Nf6 {[%emt 0:00:28]} 2. Nf3 {[%emt 0:00:04]} e6 {[%emt 0:00:40]} 3. c4 {[%emt 0:00:03]} b6 {[%emt 0:00:05]} 4. g3 {[%emt 0:00:02]} Bb7 {[%emt 0:00:04]} 5. Bg2 {[%emt 0:00:01]} Be7 {[%emt 0:00:07]} 6. O-O {[%emt 0:00:04]} O-O {[%emt 0:00:06]} 7. Nc3 {[%emt 0:00:01]} Ne4 {[%emt 0:00:09]} 8. Bd2 {[%emt 0:00:01] is the new trend.} a5 {[%emt 0:02:24] E18: Queen's Indian: Old Main Line (4 g3 Bb7 5 Bg2 Be7 6 0-0 0-0 7 Nc3).} 9. d5 {[%emt 0:04:21] [#]} Nd6 $146 {[%emt 0:02:52]} ({Predecessor:} 9... Nxc3 10. Bxc3 d6 11. Nd4 e5 12. Nb5 Nd7 13. b3 Bf6 14. a3 g6 15. b4 axb4 16. axb4 {1-0 Ikonnikov,V (2559)-Seeger,K (2071) Le Touquet op 19th 2004 (3)}) 10. b3 {[%emt 0:00:07]} Bf6 {[%emt 0:00:08]} 11. Rc1 {[%emt 0:00:13]} Na6 {[%emt 0:00:37][%cal Bb8a6,Ba6c5,Bc5b3][%mdl 32]} 12. Bf4 {[%emt 0:04:59]} Bxc3 {[%emt 0:11:55]} 13. Rxc3 {[%emt 0:00:06]} Ne4 {[%emt 0:01:55]} 14. Rc1 {[%emt 0:01:06]} (14. Re3 $5 {[%cal Re3e4]} Nec5 15. Qb1 $11) 14... Nac5 {[%emt 0:01:34]} 15. a3 {[%emt 0:13:27]} a4 $1 {[%emt 0:07:17]} 16. b4 {[%emt 0:00:01]} Nb3 {[%emt 0:00:05]} 17. Rc2 {[%emt 0:00:04]} d6 {[%emt 0:03:35]} 18. Qd3 {[%emt 0:13:03] Prevents e5} Nf6 {[%emt 0:02:42]} 19. Nd2 {[%emt 0:01:59]} e5 {[%emt 0:04:46]} 20. Bg5 {[%emt 0:01:59] Strongly threatening Ne4.} Nxd2 {[%emt 0:01:14]} 21. Bxd2 {[%emt 0:04:56]} (21. Rxd2 h6 22. Bxf6 Qxf6 $14) 21... Bc8 {[%emt 0:12:59]} 22. e4 {[%emt 0:01:24]} Qe7 {[%emt 0:03:54]} 23. Rfc1 {[%emt 0:01:59]} Nd7 {[%emt 0:02:36]} 24. h3 {[%emt 0:02:22]} Ba6 {[%emt 0:02:40]} 25. Rc3 {[%emt 0:06:07]} Qf6 {[%emt 0:05:13]} 26. Qf3 {[%emt 0:04:49]} Qe7 {[%emt 0:01:54]} 27. g4 {[%emt 0:02:17][%cal Bg3g4,Bg4g5][%mdl 32]} Bb7 {[%emt 0:00:52]} 28. Be3 {[%emt 0:00:36]} Rfb8 {[%emt 0:01:42]} 29. g5 {[%emt 0:01:28]} c5 {[%emt 0:00:59]} 30. dxc6 {[%emt 0:00:04]} Bxc6 {[%emt 0:00:04]} 31. Rd3 {[%emt 0:14:52]} Nf8 {[%emt 0:00:21]} 32. Qd1 {[%emt 0:00:01]} Ne6 {[%emt 0:00:27]} 33. Rxd6 {[%emt 0:01:13]} Rd8 {[%emt 0:00:46]} 34. c5 {[%emt 0:00:30]} bxc5 {[%emt 0:01:23]} 35. bxc5 {[%emt 0:00:01]} Rac8 {[%emt 0:06:53]} (35... Nc7 $16) 36. h4 $18 {[%emt 0:00:41]} h6 {[%emt 0:01:13]} 37. Qd2 {[%emt 0:02:22]} hxg5 {[%emt 0:00:03]} 38. Bxg5 {[%emt 0:00:20]} (38. hxg5 $142 {[%cal Og5g6]} g6 39. f3) 38... Nxg5 $2 {[%emt 0:06:26]} (38... Rxd6 $16 39. cxd6 Qb7) 39. hxg5 {[%emt 0:03:29]} ({Don't play} 39. Qxg5 $6 Re8 40. f3 Rc7) 39... g6 $2 {[%emt 0:00:00] [#]} (39... Rb8 {was necessary.} 40. g6 Be8) 40. Bh3 $1 {[%emt 0:01:58] Hoping for Rd1. Black is weak on the dark squares} Rb8 {[%emt 0:00:45]} 41. Rd1 {[%emt 0:00:00][%cal Rd6d8]} Rxd6 {[%emt 0:00:17]} 42. cxd6 {[%emt 0:00:01]} (42. Qxd6 Qxg5+ 43. Bg2 Rc8 $17) 42... Qd8 {[%emt 0:00:01][%cal Ob8b3]} 43. d7 {[%emt 0:00:59]} Bxe4 {[%emt 0:02:35]} 44. Qe3 {[%emt 0:03:35]} Bc6 {[%emt 0:00:32]} 45. Qxe5 {[%emt 0:00:43]} Rb5 {[%emt 0:00:20]} 46. Qf4 {[%emt 0:06:03]} Rxg5+ {[%emt 0:00:49]} 47. Kh2 $2 {[%emt 0:00:04]} (47. Bg4 $18 {[%cal Of4g5] and the rest is easy. Threatens to win with Qxg5!} Kg7 48. Kf1) 47... Rh5 $16 {[%emt 0:00:34]} 48. Kg3 {[%emt 0:00:05]} Bd5 {[%emt 0:07:52]} (48... Rg5+ $16 {keeps fighting.} 49. Kh2 Rh5) 49. Re1 {[%emt 0:03:27] Active counter play!} ({White has to play} 49. f3 $18) 49... Kg7 {[%emt 0:03:40] [#]} 50. Re5 {[%emt 0:01:58] Repels Rg5+} (50. Qd4+ $142 $1 Kh7 51. Re5 (51. Qxa4 Qc7+ 52. Qf4 Rxh3+ {[%mdl 64] Deflection, Promotion} 53. Kxh3 Qxf4 54. d8=Q Qf3+ 55. Kh4 Qxf2+ 56. Kg4 Qf3+ 57. Kh4 Qf2+ 58. Kg4 f5+ 59. Kg5 Qg3+ 60. Kf6 Qh4+ {[%mdl 64] Skewer} 61. Ke5 Qxd8 62. Rc1 Qe7+ 63. Kd4 Qe4+ 64. Kc3 Qe3+ 65. Kc2 f4 66. Ra1 Qb3+ 67. Kd2 Qb2+ 68. Kd3 Qxa1 69. a4 Qxa4 70. Kc3 Qc4+ 71. Kb2 Qb3+ 72. Kc1 Qc3+ 73. Kb1 Qd2 74. Ka1 Qc1#) 51... Rxh3+ {[%mdl 64] Remove Defender} 52. Kxh3 Qxd7+ 53. Kh4) 50... Rxh3+ {[%emt 0:00:17]} 51. Kxh3 {[%emt 0:00:02]} Qxd7+ {[%emt 0:00:04]} 52. Kg3 {[%emt 0:01:44] Black must now prevent Qd4.} (52. Kh2 $5 {[%cal Rf4d4]} f6 53. Re1 $16) 52... f6 {[%emt 0:02:36] White is slightly better.} 53. Re3 {[%emt 0:00:25]} g5 {[%emt 0:00:03]} 54. Qd4 {[%emt 0:01:06]} Qc7+ {[%emt 0:00:06]} 55. f4 {[%emt 0:00:03] Weighted Error Value: White=0.25 (precise) /Black=0.23 (precise)} 1/2-1/2

[Event "Saint Louis Super Swiss 2023"]
[Site "Saint Louis"]
[Date "2023.03.16"]
[Round "6.6"]
[White "Hakobyan, Aram"]
[Black "Escalante Ramirez, Brian Sebasti"]
[Result "0-1"]
[ECO "A49"]
[WhiteElo "2620"]
[BlackElo "2474"]
[Annotator "TA"]
[PlyCount "114"]
[EventDate "2023.03.12"]
[EventType "swiss"]
[EventCountry "USA"]
[TimeControl "5400+30"]

{[%evp 10,114,29,26,34,10,20,20,26,24,29,0,0,0,0,0,0,0,0,0,-16,-47,-15,-18,-18,-18,-12,-47,-49,-75,-75,-76,-87,-76,-76,-95,-86,-152,-153,-154,-151,-125,-125,-162,-149,-144,-145,-140,-140,-126,-147,-137,-135,-244,-227,-248,-248,-248,-248,-248,-248,-289,-227,-567,-22,-22,-8,-8,-16,-5700,-12461,-12570,-10980,-1733,-12678,-12220,-275,-29954,-29958,-29957,-29958,-29958,-29959,-29949,-12223,-12065,-12703,-29956,-29949,-6971,-6550,-29973,-29974,-29974,-29975,-29980,-29981,-29981,-29982,-29983,-29984,-29984,-29985,-29985,-29986,-29996,-29997]} 1. d4 {[%emt 0:00:17]} Nf6 {[%emt 0:00:08]} 2. Nf3 {[%emt 0:00:43]} g6 {[%emt 0:00:02]} 3. g3 {[%emt 0:01:42]} Bg7 {[%emt 0:00:03]} 4. Bg2 {[%emt 0:00:07]} O-O {[%emt 0:00:04]} 5. O-O {[%emt 0:00:11]} d6 {[%emt 0:00:02]} 6. Re1 {[%emt 0:00:39]} d5 {[%emt 0:00:02][%cal Oc7c5] A49: 1 d4 Nf6 2 Nf3 g6 3 g3: Anti-King's Indian systems.} 7. c3 {[%emt 0:00:23] [#]} a5 $146 {[%emt 0:00:40]} ({Predecessor:} 7... c6 8. Nbd2 Nbd7 9. e4 dxe4 10. Nxe4 Nxe4 11. Rxe4 e5 12. dxe5 Nxe5 13. Qxd8 Rxd8 14. Bg5 {0-1 Svane,R (2625)-Nenezic,M (2521) Speed Chess GP3 blitz 2021 (8)}) 8. Bf4 {[%emt 0:03:18]} c5 {[%emt 0:04:25] The position is equal.} 9. dxc5 {[%emt 0:06:07][%cal Oc3c4]} Na6 {[%emt 0:00:02]} 10. Be3 {[%emt 0:01:17]} Ng4 {[%emt 0:00:43]} 11. Bd4 {[%emt 0:06:55]} e5 {[%emt 0:01:11]} 12. h3 $1 {[%emt 0:00:04]} exd4 {[%emt 0:00:36]} 13. hxg4 {[%emt 0:00:03]} dxc3 {[%emt 0:00:07]} 14. Nxc3 {[%emt 0:00:04]} d4 {[%emt 0:06:26]} 15. Nb5 {[%emt 0:08:37]} Bxg4 {[%emt 0:00:47]} (15... Nxc5 $5 {[%cal Rd4d3]} 16. Qc2 (16. Nfxd4 Bxg4 17. Bf3 Bxf3 $15) 16... Ne6 $15) 16. Rc1 {[%emt 0:00:20][%cal Rf3d4]} Rc8 {[%emt 0:03:16]} 17. Nfxd4 {[%emt 0:09:26]} Nxc5 {[%emt 0:02:03]} 18. Rc4 {[%emt 0:10:34]} Qb6 {[%emt 0:10:30]} 19. Qc2 {[%emt 0:04:25]} Bd7 {[%emt 0:01:18] This pair of bishops is nice.} 20. Nc3 {[%emt 0:13:33]} Ne6 {[%emt 0:03:41][%mdl 64] Discovered Attack} 21. Rxc8 {[%emt 0:03:08]} Rxc8 {[%emt 0:00:17]} 22. Nxe6 {[%emt 0:01:17]} Bxe6 {[%emt 0:00:16]} 23. Qd2 {[%emt 0:03:28]} (23. a3 $142) 23... Qb4 $1 $17 {[%emt 0:13:37] Black is more active.} 24. Rd1 {[%emt 0:00:22]} Bxc3 {[%emt 0:15:06]} 25. bxc3 {[%emt 0:00:02]} Qxc3 {[%emt 0:00:06]} ({Stronger than} 25... Rxc3 26. Bxb7 Rc5 27. Qd8+ Kg7 28. a3 $11) 26. Bxb7 {[%emt 0:00:13]} Qxd2 {[%emt 0:00:02]} 27. Rxd2 {[%emt 0:00:03][%mdl 4096] Endgame KRB-KRB} Rc1+ {[%emt 0:00:06]} 28. Kg2 {[%emt 0:00:07]} Ra1 $1 {[%emt 0:00:02]} 29. Bd5 {[%emt 0:00:07]} Bxd5+ {[%emt 0:00:04][%mdl 64] Overworked Piece} 30. Rxd5 {[%emt 0:00:04]} Rxa2 {[%emt 0:00:01] KR-KR} 31. e4 {[%emt 0:00:17]} (31. g4 $17 {was necessary.}) 31... h5 $1 $19 {[%emt 0:01:56]} 32. Rd8+ {[%emt 0:02:26]} Kg7 {[%emt 0:04:27]} 33. e5 {[%emt 0:00:03]} a4 {[%emt 0:01:58]} 34. Ra8 {[%emt 0:03:56]} a3 {[%emt 0:00:13]} 35. Ra6 {[%emt 0:00:57]} g5 {[%emt 0:07:04]} 36. g4 $2 {[%emt 0:15:46]} (36. Kh3 {is a better chance.}) 36... hxg4 $2 {[%emt 0:11:37]} (36... h4 $19 37. Ra7 Kf8) 37. Kg3 $11 {[%emt 0:02:50]} Ra1 {[%emt 0:00:02] Strongly threatening ...a2.} (37... Re2 {simplifies} 38. Rxa3 Rxe5 39. Kxg4 Kg6) 38. Kxg4 {[%emt 0:00:12]} a2 {[%emt 0:00:01] ( -> ...Rg1+)} 39. Kf3 $2 {[%emt 0:00:05][%mdl 8192] [#] This costs White the game.} (39. Kf5 $11) 39... g4+ $1 {[%emt 0:00:14][%mdl 512]} 40. Kg2 $19 {[%emt 0:00:13]} Kf8 {[%emt 0:00:04]} 41. Ra7 {[%emt 0:00:58]} Ke8 $1 {[%emt 0:00:07]} 42. Kh2 {[%emt 0:01:05] [#]} Kd8 $1 {[%emt 0:00:02] Threatens to win with ...Kc8.} 43. Kg2 {[%emt 0:00:19][%cal Og2h2] [#]} Kc8 $1 {[%emt 0:00:06]} 44. Kh2 {[%emt 0:03:01]} Kb8 {[%emt 0:00:01]} 45. Ra5 {[%emt 0:00:10]} Kb7 {[%emt 0:00:42]} 46. Kg2 {[%emt 0:00:05]} Kb6 {[%emt 0:00:14]} (46... Kc6 $142 47. Kh2 Kb6 48. Ra4 Kb5 49. Ra7 Kc5 50. Ra4 Kd5 51. Ra5+ Kd4 52. Kg2 Ke4 53. e6 fxe6 54. Ra8 e5 55. Ra7 Kd4 56. Ra8 Ke4 57. Ra7 Kf4 58. Rf7+ Kg5 59. Rg7+ Kf6 60. Ra7 e4 61. Ra8 g3 62. Ra6+ Kf5 63. Ra5+ Kg6 64. fxg3 e3 65. Ra6+ Kf5 66. Ra5+ Ke4 67. Ra4+ Kd3 68. Ra6 e2 69. Ra3+ Kc2 70. Ra8 e1=Q 71. Rc8+ Qc3 {[%mdl 64] Promotion} 72. Rxc3+ Kxc3 73. g4 Re1 74. g5 a1=Q 75. Kf3 Rf1+ 76. Kg3 Qe1+ 77. Kg4 Qe4+ 78. Kg3 Qf3+ 79. Kh4 Rh1#) 47. Ra8 {[%emt 0:00:20]} Kc5 {[%emt 0:00:21]} 48. Ra4 {[%emt 0:01:22]} Kd5 {[%emt 0:05:24]} 49. Ra5+ {[%emt 0:00:06]} Ke4 {[%emt 0:00:04] White must now prevent ...Kf4.} 50. Kh2 {[%emt 0:00:20]} Kf3 {[%emt 0:01:04] Black mates.} 51. Ra7 {[%emt 0:00:21]} Re1 {[%emt 0:02:22]} 52. Rxa2 {[%emt 0:01:23]} Rxe5 {[%emt 0:00:03]} 53. Ra4 {[%emt 0:02:38]} f5 {[%emt 0:00:57][%cal Bf7f5,Bf5f4][%mdl 32]} ({Inferior is} 53... Kxf2 54. Rf4+ Ke1 55. Rxf7 $11) 54. Ra2 {[%emt 0:00:20]} f4 {[%emt 0:01:08]} ({Not} 54... Re2 55. Rxe2 g3+ 56. fxg3 Kxe2 57. Kh3 $11) 55. Ra3+ {[%emt 0:00:40]} Kxf2 {[%emt 0:00:10]} 56. Ra2+ {[%emt 0:00:02]} Re2 {[%emt 0:00:55]} 57. Ra4 {[%emt 0:00:09]} Kf3+ {[%emt 0:00:15] Weighted Error Value: White=0.51/Black=0.20 (precise)} 0-1